Workbook

Sheet Sheet1
B1: HELP
B2: Bank Allocation Module (Win) | G2: 1 | H2: Rule of Thumb v1.1 | M2: Rule of Thumb v1.0
C3: Total Bank | D3: Min BANK | E3: Stake | F3: =COUNT(D6:D15) -> 6 | H3: System Selection Assessment | M3: System Selection Assessment
C4: 1000 | D4: 50 | E4: 0.01 | F4: =C4-(D4*F3) -> 700 | H4: Win | J4: Place | M4: Win | O4: Place
C5: System name | F5: Stake | H5: sample size | I5: 174 | J5: sample size | K5: 174 | M5: sample size | O5: sample size
B6: 1 | C6: Free System 1 | D6: =I13 -> 13.096 | E6: =IF(D6<>"",$D$4+IF(D6>0,D6/$D$16*$F$4,0),"") -> 371.45141 | F6: =IFERROR(MAX(0.5,FLOOR(E6*$E$4,0.2)),"") -> 3.6 | H6: AverageR | I6: 2.25 | J6: AverageR | M6: AverageR | O6: AverageR
B7: 2 | C7: FitSpeed | D7: =I26 -> 2.850555556 | E7: 119.9690824 | F7: 1 | H7: a-WIN% | I7: 51.72 | J7: a-PLACE% | K7: 85.2 | M7: a-WIN% | O7: a-PLACE%
B8: 3 | C8: 7 day consistency | D8: =I39 -> 3.550658436 | E8: 137.153647 | F8: 1.2 | H8: e-WIN% | I8: =IF(K7="","",((K7-49.5)*12.3/15.2+22.8)/100) -> 0.5168881579 | J8: e-PLACE% | K8: =IF(I7="","",((I7-22.8)/12.3*15.2+49.5)/100) -> 0.8523853659 | M8: e-WIN% | N8: =IF(P7="","",((P7-49.5)*12.3/15.2+22.8)/100) ->  | O8: e-PLACE% | P8: =IF(N7="","",((N7-22.8)/12.3*15.2+49.5)/100) -> 
B9: 4 | C9: Fit Class | D9: =I52 -> 1.873534137 | E9: 95.98733887 | F9: 0.8 | H9: error% (+/-) | I9: =IFERROR(SQRT((1.96^2*I8*(1-I8))/I5),"") -> 0.07425121764 | J9: error% (+/-) | K9: =IFERROR(SQRT((1.96^2*K8*(1-K8))/K5),"") -> 0.05270649627 | M9: error% (+/-) | N9: =IFERROR(1/SQRT(N5),"") ->  | O9: error% (+/-) | P9: =IFERROR(1/SQRT(P5),"") -> 
B10: 5 | C10: Peak Maturity | D10: =I65 -> 2.789827586 | E10: 118.4784676 | F10: 1 | H10: win% low | I10: =IFERROR(MAX(0,I8-I9),"") -> 0.4426369403 | J10: place% low | K10: =IFERROR((K8-K9),"") -> 0.7996788696 | M10: win% low | N10: =IFERROR(MAX(0,N8-N9),"") ->  | O10: place% low | P10: =IFERROR((P8-P9),"") -> 
B11: 6 | C11: Super Geldings | D11: =I78 -> 4.357575758 | E11: 156.9600543 | F11: 1.4 | H11: win% high | I11: =IFERROR(I8+I9,"") -> 0.5911393755 | J11: place% high | K11: =IFERROR(K8+K9,"") -> 0.9050918621 | M11: win% high | N11: =IFERROR(N8+N9,"") ->  | O11: place% high | P11: =IFERROR(P8+P9,"") -> 
B12: 7 | C12: system 7 | D12: =I91 ->  | H12: =IF(I12<1,"Thumbs down","Thumbs up") -> Thumbs down | I12: =IFERROR(I6*I10,"") -> 0.9959331156 | J12: =IF(K12<1,"Thumbs down","Thumbs up") -> Thumbs down | K12: =IFERROR(K6*K10,"") -> 0 | M12: =IF(N12<1,"Thumbs down","Thumbs up") -> Thumbs up | N12: =IFERROR(N6*N10,"") ->  | O12: =IF(P12<1,"Thumbs down","Thumbs up") -> Thumbs up | P12: =IFERROR(P6*P10,"") -> 
B13: 8 | C13: system 8 | D13: =I104 ->  | H13: p-INDEX | I13: =IF(OR(I6="",I7=""),"",(I6*I7-100)/(I6-1)) -> 13.096 | J13: p-INDEX | K13: =IF(OR(K6="",K7=""),"",(K6*K7-100)/(K6-1)) -> 
B14: 9 | C14: system 9 | D14: =I117 -> 
B15: 10 | C15: system 10 | D15: =I130 ->  | G15: 2 | H15: Rule of Thumb v1.1
D16: =SUMIF(D6:D15,">0") -> 28.51815147 | E16: =SUM(E6:E15) -> 1000 | F16: =SUM(F6:F15) -> 9 | H16: System Selection Assessment
H17: Win | J17: Place
H18: sample size | I18: 897 | J18: sample size | K18: 897
H19: AverageR | I19: 4.6 | J19: AverageR
H20: a-WIN% | I20: 23.97 | J20: a-PLACE% | K20: 50.9
H21: e-WIN% | I21: =IF(K20="","",((K20-49.5)*12.3/15.2+22.8)/100) -> 0.2393289474 | J21: e-PLACE% | K21: =IF(I20="","",((I20-22.8)/12.3*15.2+49.5)/100) -> 0.5094585366
H22: error% (+/-) | I22: =IFERROR(SQRT((1.96^2*I21*(1-I21))/I18),"") -> 0.02792260353 | J22: error% (+/-) | K22: =IFERROR(SQRT((1.96^2*K21*(1-K21))/K18),"") -> 0.03271539234
H23: win% low | I23: =IFERROR(MAX(0,I21-I22),"") -> 0.2114063438 | J23: place% low | K23: =IFERROR((K21-K22),"") -> 0.4767431442
H24: win% high | I24: =IFERROR(I21+I22,"") -> 0.2672515509 | J24: place% high | K24: =IFERROR(K21+K22,"") -> 0.5421739289
H25: =IF(I25<1,"Thumbs down","Thumbs up") -> Thumbs down | I25: =IFERROR(I19*I23,"") -> 0.9724691816 | J25: =IF(K25<1,"Thumbs down","Thumbs up") -> Thumbs down | K25: =IFERROR(K19*K23,"") -> 0
H26: p-INDEX | I26: =IF(OR(I19="",I20=""),"",(I19*I20-100)/(I19-1)) -> 2.850555556 | J26: p-INDEX | K26: =IF(OR(K19="",K20=""),"",(K19*K20-100)/(K19-1)) -> 
G28: 3 | H28: Rule of Thumb v1.1
H29: System Selection Assessment
H30: Win | J30: Place
H31: sample size | I31: 461 | J31: sample size | K31: 491
H32: AverageR | I32: 3.43 | J32: AverageR
H33: a-WIN% | I33: 31.67 | J33: a-PLACE% | K33: 60.5
H34: e-WIN% | I34: =IF(K33="","",((K33-49.5)*12.3/15.2+22.8)/100) -> 0.3170131579 | J34: e-PLACE% | K34: =IF(I33="","",((I33-22.8)/12.3*15.2+49.5)/100) -> 0.6046130081
H35: error% (+/-) | I35: =IFERROR(SQRT((1.96^2*I34*(1-I34))/I31),"") -> 0.04247666598 | J35: error% (+/-) | K35: =IFERROR(SQRT((1.96^2*K34*(1-K34))/K31),"") -> 0.0432479232
H36: win% low | I36: =IFERROR(MAX(0,I34-I35),"") -> 0.2745364919 | J36: place% low | K36: =IFERROR((K34-K35),"") -> 0.5613650849
H37: win% high | I37: =IFERROR(I34+I35,"") -> 0.3594898239 | J37: place% high | K37: =IFERROR(K34+K35,"") -> 0.6478609313
H38: =IF(I38<1,"Thumbs down","Thumbs up") -> Thumbs down | I38: =IFERROR(I32*I36,"") -> 0.9416601673 | J38: =IF(K38<1,"Thumbs down","Thumbs up") -> Thumbs down | K38: =IFERROR(K32*K36,"") -> 0
H39: p-INDEX | I39: =IF(OR(I32="",I33=""),"",(I32*I33-100)/(I32-1)) -> 3.550658436 | J39: p-INDEX | K39: =IF(OR(K32="",K33=""),"",(K32*K33-100)/(K32-1)) -> 
G41: 4 | H41: Rule of Thumb v1.1
H42: System Selection Assessment
H43: Win | J43: Place
H44: sample size | I44: 1384 | J44: sample size | K44: 1384
H45: AverageR | I45: 3.49 | J45: AverageR
H46: a-WIN% | I46: 29.99 | J46: a-PLACE% | K46: 58.4
H47: e-WIN% | I47: =IF(K46="","",((K46-49.5)*12.3/15.2+22.8)/100) -> 0.3000197368 | J47: e-PLACE% | K47: =IF(I46="","",((I46-22.8)/12.3*15.2+49.5)/100) -> 0.5838520325
H48: error% (+/-) | I48: =IFERROR(SQRT((1.96^2*I47*(1-I47))/I44),"") -> 0.02414381177 | J48: error% (+/-) | K48: =IFERROR(SQRT((1.96^2*K47*(1-K47))/K44),"") -> 0.02596948358
H49: win% low | I49: =IFERROR(MAX(0,I47-I48),"") -> 0.2758759251 | J49: place% low | K49: =IFERROR((K47-K48),"") -> 0.5578825489
H50: win% high | I50: =IFERROR(I47+I48,"") -> 0.3241635486 | J50: place% high | K50: =IFERROR(K47+K48,"") -> 0.6098215161
H51: =IF(I51<1,"Thumbs down","Thumbs up") -> Thumbs down | I51: =IFERROR(I45*I49,"") -> 0.9628069785 | J51: =IF(K51<1,"Thumbs down","Thumbs up") -> Thumbs down | K51: =IFERROR(K45*K49,"") -> 0
H52: p-INDEX | I52: =IF(OR(I45="",I46=""),"",(I45*I46-100)/(I45-1)) -> 1.873534137 | J52: p-INDEX | K52: =IF(OR(K45="",K46=""),"",(K45*K46-100)/(K45-1)) -> 
G54: 5 | H54: Rule of Thumb v1.1
H55: System Selection Assessment
H56: Win | J56: Place
H57: sample size | I57: 1790 | J57: sample size | K57: 1790
H58: AverageR | I58: 3.32 | J58: AverageR
H59: a-WIN% | I59: 32.07 | J59: a-PLACE% | K59: 61
H60: e-WIN% | I60: =IF(K59="","",((K59-49.5)*12.3/15.2+22.8)/100) -> 0.3210592105 | J60: e-PLACE% | K60: =IF(I59="","",((I59-22.8)/12.3*15.2+49.5)/100) -> 0.6095560976
H61: error% (+/-) | I61: =IFERROR(SQRT((1.96^2*I60*(1-I60))/I57),"") -> 0.0216290813 | J61: error% (+/-) | K61: =IFERROR(SQRT((1.96^2*K60*(1-K60))/K57),"") -> 0.0226003788
H62: win% low | I62: =IFERROR(MAX(0,I60-I61),"") -> 0.2994301292 | J62: place% low | K62: =IFERROR((K60-K61),"") -> 0.5869557188
H63: win% high | I63: =IFERROR(I60+I61,"") -> 0.3426882918 | J63: place% high | K63: =IFERROR(K60+K61,"") -> 0.6321564764
H64: =IF(I64<1,"Thumbs down","Thumbs up") -> Thumbs down | I64: =IFERROR(I58*I62,"") -> 0.994108029 | J64: =IF(K64<1,"Thumbs down","Thumbs up") -> Thumbs down | K64: =IFERROR(K58*K62,"") -> 0
H65: p-INDEX | I65: =IF(OR(I58="",I59=""),"",(I58*I59-100)/(I58-1)) -> 2.789827586 | J65: p-INDEX | K65: =IF(OR(K58="",K59=""),"",(K58*K59-100)/(K58-1)) -> 
G67: 6 | H67: Rule of Thumb v1.1
H68: System Selection Assessment
H69: Win | J69: Place
H70: sample size | I70: 1605 | J70: sample size | K70: 1605
H71: AverageR | I71: 4.3 | J71: AverageR
H72: a-WIN% | I72: 26.6 | J72: a-PLACE% | K72: 54.2
H73: e-WIN% | I73: =IF(K72="","",((K72-49.5)*12.3/15.2+22.8)/100) -> 0.2660328947 | J73: e-PLACE% | K73: =IF(I72="","",((I72-22.8)/12.3*15.2+49.5)/100) -> 0.5419593496
H74: error% (+/-) | I74: =IFERROR(SQRT((1.96^2*I73*(1-I73))/I70),"") -> 0.02161844843 | J74: error% (+/-) | K74: =IFERROR(SQRT((1.96^2*K73*(1-K73))/K70),"") -> 0.02437552177
H75: win% low | I75: =IFERROR(MAX(0,I73-I74),"") -> 0.2444144463 | J75: place% low | K75: =IFERROR((K73-K74),"") -> 0.5175838278
H76: win% high | I76: =IFERROR(I73+I74,"") -> 0.2876513432 | J76: place% high | K76: =IFERROR(K73+K74,"") -> 0.5663348714
H77: =IF(I77<1,"Thumbs down","Thumbs up") -> Thumbs up | I77: =IFERROR(I71*I75,"") -> 1.050982119 | J77: =IF(K77<1,"Thumbs down","Thumbs up") -> Thumbs down | K77: =IFERROR(K71*K75,"") -> 0
H78: p-INDEX | I78: =IF(OR(I71="",I72=""),"",(I71*I72-100)/(I71-1)) -> 4.357575758 | J78: p-INDEX | K78: =IF(OR(K71="",K72=""),"",(K71*K72-100)/(K71-1)) -> 
G80: 7 | H80: Rule of Thumb v1.1
H81: System Selection Assessment
H82: Win | J82: Place
H83: sample size | J83: sample size
H84: AverageR | J84: AverageR
H85: a-WIN% | J85: a-PLACE%
H86: e-WIN% | I86: =IF(K85="","",((K85-49.5)*12.3/15.2+22.8)/100) ->  | J86: e-PLACE% | K86: =IF(I85="","",((I85-22.8)/12.3*15.2+49.5)/100) -> 
H87: error% (+/-) | I87: =IFERROR(SQRT((1.96^2*I86*(1-I86))/I83),"") ->  | J87: error% (+/-) | K87: =IFERROR(SQRT((1.96^2*K86*(1-K86))/K83),"") -> 
H88: win% low | I88: =IFERROR(MAX(0,I86-I87),"") ->  | J88: place% low | K88: =IFERROR((K86-K87),"") -> 
H89: win% high | I89: =IFERROR(I86+I87,"") ->  | J89: place% high | K89: =IFERROR(K86+K87,"") -> 
H90: =IF(I90<1,"Thumbs down","Thumbs up") -> Thumbs up | I90: =IFERROR(I84*I88,"") ->  | J90: =IF(K90<1,"Thumbs down","Thumbs up") -> Thumbs up | K90: =IFERROR(K84*K88,"") -> 
H91: p-INDEX | I91: =IF(OR(I84="",I85=""),"",(I84*I85-100)/(I84-1)) ->  | J91: p-INDEX | K91: =IF(OR(K84="",K85=""),"",(K84*K85-100)/(K84-1)) -> 
G93: 8 | H93: Rule of Thumb v1.1
H94: System Selection Assessment
H95: Win | J95: Place
H96: sample size | J96: sample size
H97: AverageR | J97: AverageR
H98: a-WIN% | J98: a-PLACE%
H99: e-WIN% | I99: =IF(K98="","",((K98-49.5)*12.3/15.2+22.8)/100) ->  | J99: e-PLACE% | K99: =IF(I98="","",((I98-22.8)/12.3*15.2+49.5)/100) -> 
H100: error% (+/-) | I100: =IFERROR(SQRT((1.96^2*I99*(1-I99))/I96),"") ->  | J100: error% (+/-) | K100: =IFERROR(SQRT((1.96^2*K99*(1-K99))/K96),"") -> 
H101: win% low | I101: =IFERROR(MAX(0,I99-I100),"") ->  | J101: place% low | K101: =IFERROR((K99-K100),"") -> 
H102: win% high | I102: =IFERROR(I99+I100,"") ->  | J102: place% high | K102: =IFERROR(K99+K100,"") -> 
H103: =IF(I103<1,"Thumbs down","Thumbs up") -> Thumbs up | I103: =IFERROR(I97*I101,"") ->  | J103: =IF(K103<1,"Thumbs down","Thumbs up") -> Thumbs up | K103: =IFERROR(K97*K101,"") -> 
H104: p-INDEX | I104: =IF(OR(I97="",I98=""),"",(I97*I98-100)/(I97-1)) ->  | J104: p-INDEX | K104: =IF(OR(K97="",K98=""),"",(K97*K98-100)/(K97-1)) -> 
G106: 9 | H106: Rule of Thumb v1.1
H107: System Selection Assessment
H108: Win | J108: Place
H109: sample size | J109: sample size
H110: AverageR | J110: AverageR
H111: a-WIN% | J111: a-PLACE%
H112: e-WIN% | I112: =IF(K111="","",((K111-49.5)*12.3/15.2+22.8)/100) ->  | J112: e-PLACE% | K112: =IF(I111="","",((I111-22.8)/12.3*15.2+49.5)/100) -> 
H113: error% (+/-) | I113: =IFERROR(SQRT((1.96^2*I112*(1-I112))/I109),"") ->  | J113: error% (+/-) | K113: =IFERROR(SQRT((1.96^2*K112*(1-K112))/K109),"") -> 
H114: win% low | I114: =IFERROR(MAX(0,I112-I113),"") ->  | J114: place% low | K114: =IFERROR((K112-K113),"") -> 
H115: win% high | I115: =IFERROR(I112+I113,"") ->  | J115: place% high | K115: =IFERROR(K112+K113,"") -> 
H116: =IF(I116<1,"Thumbs down","Thumbs up") -> Thumbs up | I116: =IFERROR(I110*I114,"") ->  | J116: =IF(K116<1,"Thumbs down","Thumbs up") -> Thumbs up | K116: =IFERROR(K110*K114,"") -> 
H117: p-INDEX | I117: =IF(OR(I110="",I111=""),"",(I110*I111-100)/(I110-1)) ->  | J117: p-INDEX | K117: =IF(OR(K110="",K111=""),"",(K110*K111-100)/(K110-1)) -> 
G119: 10 | H119: Rule of Thumb v1.1
H120: System Selection Assessment
H121: Win | J121: Place
H122: sample size | J122: sample size
H123: AverageR | J123: AverageR
H124: a-WIN% | J124: a-PLACE%
H125: e-WIN% | I125: =IF(K124="","",((K124-49.5)*12.3/15.2+22.8)/100) ->  | J125: e-PLACE% | K125: =IF(I124="","",((I124-22.8)/12.3*15.2+49.5)/100) -> 
H126: error% (+/-) | I126: =IFERROR(SQRT((1.96^2*I125*(1-I125))/I122),"") ->  | J126: error% (+/-) | K126: =IFERROR(SQRT((1.96^2*K125*(1-K125))/K122),"") -> 
H127: win% low | I127: =IFERROR(MAX(0,I125-I126),"") ->  | J127: place% low | K127: =IFERROR((K125-K126),"") -> 
H128: win% high | I128: =IFERROR(I125+I126,"") ->  | J128: place% high | K128: =IFERROR(K125+K126,"") -> 
H129: =IF(I129<1,"Thumbs down","Thumbs up") -> Thumbs up | I129: =IFERROR(I123*I127,"") ->  | J129: =IF(K129<1,"Thumbs down","Thumbs up") -> Thumbs up | K129: =IFERROR(K123*K127,"") -> 
H130: p-INDEX | I130: =IF(OR(I123="",I124=""),"",(I123*I124-100)/(I123-1)) ->  | J130: p-INDEX | K130: =IF(OR(K123="",K124=""),"",(K123*K124-100)/(K123-1)) -> 
